Workbook

Sheet Прайс-лист SCR
A1: Прайс-лист 2016 / 2017 действителен с 01.12.2016
A4: Для рассчета рекомендуемой розничной цены после двойного клика введите в ячейку курс ЦБ РФ Рубль/Евро на интересующую Вас дату:
A6: >>>>>>>>>> | B6: 68.7 | D6: <<<<<<<<<<
A8: Рекомендуемая розничная цена в рублях по курсу ЦБ РФ + 2%
A10: Артикулы, не указанные в прайс-листе, следует запрашивать отдельно
A11: Артикульный номер | B11: Наименование | C11: Ед. | D11: Рекомендуемая розничная цена за Ед.
D12: Евро | E12: Рубли (ЦБ РФ + 2%)
A13: 100-0051-02 | B13: Кабель-мультикор микрофонный (балансный) SC-PLANET FMC02, конструкция: 2 х 2 х 0,19 мм², оболочка: S-PVC 7,0 мм, цвет: черный | C13: м | D13: 2.72 | E13: =IF(D13="По запросу",D13,D13*$B$6*(1+0.02)) -> 190.60128
A14: 100-0051-04 | B14: Кабель-мультикор микрофонный (балансный) SC-PLANET FMC04, конструкция: 4 х 2 х 0,19 мм², оболочка: S-PVC 8,0 мм, цвет: черный | C14: м | D14: 4.07 | E14: 285.20118
A15: 100-0051-12+2 | B15: Кабель-мультикор микрофонный (балансный) SC-PLANET FMC12+2, конструкция: 14 х 2 х 0,19 мм², оболочка: S-PVC 12,4 мм, цвет: черный | C15: м | D15: 11.96 | E15: 838.08504
A16: 100-0051-34+2 | B16: Кабель-мультикор микрофонный (балансный) SC-PLANET FMC34+2, конструкция: 36 х 2 х 0,19 мм², оболочка: S-PVC 18,6 мм, цвет: черный | C16: м | D16: 28.78 | E16: 2016.72972
A17: 100-0051-48+2 | B17: Кабель-мультикор микрофонный (балансный) SC-PLANET FMC48+2, конструкция: 50 x 2 х 0,19 мм², оболочка: S-PVC 23,7 мм, цвет: черный | C17: м | D17: 38.93 | E17: 2727.98082
A18: 100-0101-02 | B18: Кабель-мультикор микрофонный (балансный) SC-MISTRAL MCF02 AES/EBU 110 Ом, конструкция: 2 х 2 х 0,22 мм², оболочка: S-PVC 9,0 мм, цвет: черный | C18: м | D18: 4.04 | E18: 283.09896
A19: 100-0101-04 | B19: Кабель-мультикор микрофонный (балансный) SC-MISTRAL MCF04 AES/EBU 110 Ом, конструкция: 4 х 2 х 0,22 мм², оболочка: S-PVC 11,0 мм, цвет: черный | C19: м | D19: 5.7 | E19: 399.4218
A20: 100-0101-04F | B20: Кабель-мультикор микрофонный (балансный) SC-MISTRAL MCF04 FRNC негорючий AES/EBU 110 Ом, конструкция: 4 х 2 х 0,22 мм², оболочка: FRNC 11,0 мм, цвет: черный | C20: м | D20: 7.07 | E20: 495.42318
A21: 100-0101-08 | B21: Кабель-мультикор микрофонный (балансный) SC-MISTRAL MCF08 AES/EBU 110 Ом, конструкция: 8 x 2 х 0,22 мм², оболочка: S-PVC 14,8 мм, цвет: черный | C21: м | D21: 11.09 | E21: 777.12066
A22: 100-0101-08F | B22: Кабель-мультикор микрофонный (балансный) SC-MISTRAL MCF08 FRNC негорючий AES/EBU 110 Ом, конструкция: 8 x 2 х 0,22 мм², оболочка: FRNC 15,0 мм, цвет: черный | C22: м | D22: 12 | E22: 840.888
A23: 100-0101-12 | B23: Кабель-мультикор микрофонный (балансный) SC-MISTRAL MCF12 AES/EBU 110 Ом, конструкция: 12 x 2 х 0,22 мм², оболочка: S-PVC 17,6 мм, цвет: черный | C23: м | D23: 14.57 | E23: 1020.97818
A24: 100-0101-12F | B24: Кабель-мультикор микрофонный (балансный) SC-MISTRAL MCF12 FRNC негорючий AES/EBU 110 Ом, конструкция: 12 x 2 х 0,22 мм², оболочка: FRNC 16,9 мм, цвет: черный | C24: м | D24: 16.83 | E24: 1179.34542
A25: 100-0101-16 | B25: Кабель-мультикор микрофонный (балансный) SC-MISTRAL MCF16 AES/EBU 110 Ом, конструкция: 16 x 2 х 0,22 мм², оболочка: S-PVC 19,4 мм, цвет: черный | C25: м | D25: 19.17 | E25: 1343.31858
A26: 100-0101-24 | B26: Кабель-мультикор микрофонный (балансный) SC-MISTRAL MCF24 AES/EBU 110 Ом, конструкция: 24 x 2 х 0,22 мм², оболочка: S-PVC 24,5 мм, цвет: черный | C26: м | D26: 28.63 | E26: 2006.21862
A27: 100-0101-32 | B27: Кабель-мультикор микрофонный (балансный) SC-MISTRAL MCF32 AES/EBU 110 Ом, конструкция: 32 х 2 х 0,22 мм², оболочка: S-PVC 26,8 мм, цвет: черный | C27: м | D27: 37.48 | E27: 2626.37352
A28: 100-0302-02 | B28: Кабель-мультикор микрофонный (балансный) SC-MATRIX MMC02 негорючий AES/EBU 110 Ом, конструкция: 2 х 2 х 0,25 мм², оболочка: FRNC 10,0 мм, цвет: синий | C28: м | D28: 6.61 | E28: 463.18914
A29: 100-0302-04 | B29: Кабель-мультикор микрофонный (балансный) SC-MATRIX MMC04 негорючий AES/EBU 110 Ом, конструкция: 4 х 2 х 0,25 мм², оболочка: FRNC 11,9 мм, цвет: синий | C29: м | D29: 10.3 | E29: 721.7622
A30: 100-0302-08 | B30: Кабель-мультикор микрофонный (балансный) SC-MATRIX MMC08 негорючий AES/EBU 110 Ом, конструкция: 8 x 2 х 0,25 мм², оболочка: FRNC 15,5 мм, цвет: синий | C30: м | D30: 17.61 | E30: 1234.00314
A31: 100-0302-12 | B31: Кабель-мультикор микрофонный (балансный) SC-MATRIX MMC12 негорючий AES/EBU 110 Ом, конструкция: 12 x 2 х 0,25 мм², оболочка: FRNC 19,9 мм, цвет: синий | C31: м | D31: 28.09 | E31: 1968.37866
A32: 100-0302-16 | B32: Кабель-мультикор микрофонный (балансный) SC-MATRIX MMC16 негорючий AES/EBU 110 Ом, конструкция: 16 x 2 х 0,25 мм², оболочка: FRNC 21,5 мм, цвет: синий | C32: м | D32: 33.02 | E32: 2313.84348
A33: 100-0351-10 | B33: Кабель-мультикор микрофонный (балансный) SC-AURA DMCK10, конструкция: 10 х 2 х 0,15 мм², оболочка: PVC 14,4 мм, цвет: черный | C33: м | D33: 18.39 | E33: 1288.66086
A34: 100-0351-10F | B34: Кабель-мультикор микрофонный (балансный) SC-AURA DMCK10 FRNC негорючий, конструкция: 10 х 2 х 0,15 мм², оболочка: SOFT PUR FRNC 12,0 мм, цвет: черный | C34: м | D34: 19.83 | E34: 1389.56742
A35: 100-0401-08 | B35: Кабель-мультикор микрофонный (балансный) SC-TRANSFER HIGHFLEX AMCK08, конструкция: 8 x 2 х 0,14 мм², оболочка: PUR 9,9 мм, цвет: черный | C35: м | D35: 13.89 | E35: 973.32786
A36: 100-0401-10F | B36: Кабель-мультикор микрофонный (балансный) SC-TRANSFER HIGHFLEX AMCK10 негорючий, конструкция: 10 х 2 х 0,14 мм², оболочка: FRNC 10,8 мм, цвет: черный | C36: м | D36: 16.33 | E36: 1144.30842
A37: 100-0401-12 | B37: Кабель-мультикор микрофонный (балансный) SC-TRANSFER HIGHFLEX AMCK12, конструкция: 12 x 2 х 0,14 мм², оболочка: PUR 11,5 мм, цвет: черный | C37: м | D37: 19.52 | E37: 1367.84448
A38: 100-0401-16 | B38: Кабель-мультикор микрофонный (балансный) SC-TRANSFER HIGHFLEX AMCK16, конструкция: 16 x 2 х 0,14 мм², оболочка: PUR 14,5 мм, цвет: черный | C38: м | D38: 23 | E38: 1611.702
A39: 100-0401-32 | B39: Кабель-мультикор микрофонный (балансный) SC-TRANSFER HIGHFLEX AMCK32, конструкция: 32 х 2 х 0,14 мм², оболочка: PUR 18,6 мм, цвет: черный | C39: м | D39: 41.09 | E39: 2879.34066
A40: 100-0401-40 | B40: Кабель-мультикор микрофонный (балансный) SC-TRANSFER HIGHFLEX AMCK40, конструкция: 40 х 2 х 0,14 мм², оболочка: PUR 20,5 мм, цвет: черный | C40: м | D40: 49.74 | E40: 3485.48076
A41: 100-0401-48 | B41: Кабель-мультикор микрофонный (балансный) SC-TRANSFER HIGHFLEX AMCK48, конструкция: 48 х 2 х 0,14 мм², оболочка: PUR 21,8 мм, цвет: черный | C41: м | D41: 60.46 | E41: 4236.67404
A42: 100-0451-02 | B42: Кабель-мультикор микрофонный (балансный) SC-QUANTUM HIGHFLEX QMC02 AES/EBU 110 Ом, конструкция: 2 х 2 х 0,14 мм², оболочка: S-PVC 8,5 мм, цвет: черный | C42: м | D42: 3.93 | E42: 275.39082
A43: 100-0451-04 | B43: Кабель-мультикор микрофонный (балансный) SC-QUANTUM HIGHFLEX QMC04 AES/EBU 110 Ом, конструкция: 4 х 2 х 0,14 мм², оболочка: S-PVC 10,2 мм, цвет: черный | C43: м | D43: 6 | E43: 420.444
A44: 100-0451-08 | B44: Кабель-мультикор микрофонный (балансный) SC-QUANTUM HIGHFLEX QMC08 AES/EBU 110 Ом, конструкция: 8 x 2 х 0,14 мм², оболочка: S-PVC 13,8 мм, цвет: черный | C44: м | D44: 11.17 | E44: 782.72658
A45: 100-0451-12 | B45: Кабель-мультикор микрофонный (балансный) SC-QUANTUM HIGHFLEX QMC12 AES/EBU 110 Ом, конструкция: 12 x 2 х 0,14 мм², оболочка: S-PVC 16,0 мм, цвет: черный | C45: м | D45: 16.93 | E45: 1186.35282
A46: 100-0451-16 | B46: Кабель-мультикор микрофонный (балансный) SC-QUANTUM HIGHFLEX QMC16 AES/EBU 110 Ом, конструкция: 16 x 2 х 0,14 мм², оболочка: S-PVC 17,5 мм, цвет: черный | C46: м | D46: 20.59 | E46: 1442.82366
A47: 100-0451-20 | B47: Кабель-мультикор микрофонный (балансный) SC-QUANTUM HIGHFLEX QMC20 AES/EBU 110 Ом, конструкция: 20 х 2 х 0,14 мм², оболочка: S-PVC 19,5 мм, цвет: черный | C47: м | D47: 26.46 | E47: 1854.15804
A48: 100-0451-24 | B48: Кабель-мультикор микрофонный (балансный) SC-QUANTUM HIGHFLEX QMC24 AES/EBU 110 Ом, конструкция: 24 x 2 х 0,14 мм², оболочка: S-PVC 21,5 мм, цвет: черный | C48: м | D48: 30.5 | E48: 2137.257
A49: 100-0451-32 | B49: Кабель-мультикор микрофонный (балансный) SC-QUANTUM HIGHFLEX QMC32 AES/EBU 110 Ом, конструкция: 32 х 2 х 0,14 мм², оболочка: S-PVC 24,0 мм, цвет: черный | C49: м | D49: 40.11 | E49: 2810.66814
A50: 100-0451-48 | B50: Кабель-мультикор микрофонный (балансный) SC-QUANTUM HIGHFLEX QMC48 AES/EBU 110 Ом, конструкция: 48 х 2 х 0,14 мм², оболочка: S-PVC 29,0 мм, цвет: черный | C50: м | D50: 59.07 | E50: 4139.27118
A51: 100-0501-02 | B51: Кабель-мультикор микрофонный (балансный) SC-PEGASUS CMCK02 AES/EBU 110 Ом, конструкция: 2 х 4 х 0,20 мм², оболочка: S-PVC 13,5 мм, цвет: черный | C51: м | D51: 13.15 | E51: 921.4731
A52: 100-0501-04 | B52: Кабель-мультикор микрофонный (балансный) SC-PEGASUS CMCK04 AES/EBU 110 Ом, конструкция: 4 х 4 х 0,20 мм², оболочка: S-PVC 15,4 мм, цвет: черный | C52: м | D52: 20.87 | E52: 1462.44438
A53: 100-0501-08 | B53: Кабель-мультикор микрофонный (балансный) SC-PEGASUS CMCK08 AES/EBU 110 Ом, конструкция: 8 x 4 х 0,20 мм², оболочка: S-PVC 21,0 мм, цвет: черный | C53: м | D53: 37.72 | E53: 2643.19128
A54: 100-0616-02 | B54: Кабель связи (балансный) SC-LOGICABLE LG MOD6LG02 негорючий, конструкция: 2 х 2 х 0,60 мм, оболочка: FRNC 4,9 мм, цвет: серый | C54: м | D54: 0.84 | E54: 58.86216
A55: 100-0616-03 | B55: Кабель связи (балансный) SC-LOGICABLE LG MOD6LG03 негорючий, конструкция: 3 х 2 х 0,60 мм, оболочка: FRNC 6,2 мм, цвет: серый | C55: м | D55: 1.27 | E55: 88.99398
A56: 100-0616-04 | B56: Кабель связи (балансный) SC-LOGICABLE LG MOD6LG04 негорючий, конструкция: 4 х 2 х 0,60 мм, оболочка: FRNC 6,6 мм, цвет: серый | C56: м | D56: 1.47 | E56: 103.00878
A57: 100-0616-05 | B57: Кабель связи (балансный) SC-LOGICABLE LG MOD6LG05 негорючий, конструкция: 5 х 2 х 0,60 мм, оболочка: FRNC 7,1 мм, цвет: серый | C57: м | D57: 1.82 | E57: 127.53468
A58: 100-0616-06 | B58: Кабель связи (балансный) SC-LOGICABLE LG MOD6LG06 негорючий, конструкция: 6 x 2 х 0,60 мм, оболочка: FRNC 7,6 мм, цвет: серый | C58: м | D58: 1.87 | E58: 131.03838
A59: 100-0616-08 | B59: Кабель связи (балансный) SC-LOGICABLE LG MOD6LG08 негорючий, конструкция: 8 x 2 х 0,60 мм, оболочка: FRNC 8,1 мм, цвет: серый | C59: м | D59: 2.58 | E59: 180.79092
A60: 100-0616-10 | B60: Кабель связи (балансный) SC-LOGICABLE LG MOD6LG10 негорючий, конструкция: 10 х 2 х 0,60 мм, оболочка: FRNC 9,3 мм, цвет: серый | C60: м | D60: 3.06 | E60: 214.42644
A61: 100-0616-100 | B61: Кабель связи (балансный) SC-LOGICABLE LG MOD6LG100 негорючий, конструкция: 10 х 2 х 0,60 мм, оболочка: FRNC 22,1 мм, цвет: серый | C61: м | D61: 25.94 | E61: 1817.71956
A62: 100-0616-20 | B62: Кабель связи (балансный) SC-LOGICABLE LG MOD6LG20 негорючий, конструкция: 20 х 2 х 0,60 мм, оболочка: FRNC 10,9 мм, цвет: серый | C62: м | D62: 5.66 | E62: 396.61884
A63: 100-0616-30 | B63: Кабель связи (балансный) SC-LOGICABLE LG MOD6LG30 негорючий, конструкция: 20 х 2 х 0,60 мм, оболочка: FRNC 13,7 мм, цвет: серый | C63: м | D63: 8.63 | E63: 604.73862
A64: 100-0616-40 | B64: Кабель связи (балансный) SC-LOGICABLE LG MOD6LG40 негорючий, конструкция: 40 х 2 х 0,60 мм, оболочка: FRNC 14,5 мм, цвет: серый | C64: м | D64: 11.08 | E64: 776.41992
A65: 100-0616-50 | B65: Кабель связи (балансный) SC-LOGICABLE LG MOD6LG50 негорючий, конструкция: 50 x 2 х 0,60 мм, оболочка: FRNC 16,5 мм, цвет: серый | C65: м | D65: 13.32 | E65: 933.38568
A66: 100-0806-02 | B66: Кабель связи (балансный) SC-LOGICABLE LG MOD8LG02 негорючий, конструкция: 2 х 2 х 0,80 мм, оболочка: FRNC 6,1 мм, цвет: серый | C66: м | D66: 1.31 | E66: 91.79694
A67: 100-0806-03 | B67: Кабель связи (балансный) SC-LOGICABLE LG MOD8LG03 негорючий, конструкция: 3 х 2 х 0,80 мм, оболочка: FRNC 8,0 мм, цвет: серый | C67: м | D67: 1.98 | E67: 138.74652
A68: 100-0806-04 | B68: Кабель связи (балансный) SC-LOGICABLE LG MOD8LG04 негорючий, конструкция: 4 х 2 х 0,80 мм, оболочка: FRNC 8,7 мм, цвет: серый | C68: м | D68: 2.35 | E68: 164.6739
A69: 100-0806-06 | B69: Кабель связи (балансный) SC-LOGICABLE LG MOD8LG06 негорючий, конструкция: 6 x 2 х 0,80 мм, оболочка: FRNC 10,1 мм, цвет: серый | C69: м | D69: 3.39 | E69: 237.55086
A70: 100-0806-08 | B70: Кабель связи (балансный) SC-LOGICABLE LG MOD8LG08 негорючий, конструкция: 8 x 2 х 0,80 мм, оболочка: FRNC 10,2 мм, цвет: серый | C70: м | D70: 4.24 | E70: 297.11376
A71: 100-0806-10 | B71: Кабель связи (балансный) SC-LOGICABLE LG MOD8LG10 негорючий, конструкция: 10 х 2 х 0,80 мм, оболочка: FRNC 13,1 мм, цвет: серый | C71: м | D71: 5.32 | E71: 372.79368
A72: 100-0806-20 | B72: Кабель связи (балансный) SC-LOGICABLE LG MOD8LG20 негорючий, конструкция: 20 х 2 х 0,80 мм, оболочка: FRNC 15,6 мм, цвет: серый | C72: м | D72: 9.76 | E72: 683.92224
A73: 100-0806-30 | B73: Кабель связи (балансный) SC-LOGICABLE LG MOD8LG30 негорючий, конструкция: 30 х 2 х 0,80 мм, оболочка: FRNC 19,4 мм, цвет: серый | C73: м | D73: 14.56 | E73: 1020.27744
A74: 100-0806-40 | B74: Кабель связи (балансный) SC-LOGICABLE LG MOD8LG40 негорючий, конструкция: 40 х 2 х 0,80 мм, оболочка: FRNC 20,9 мм, цвет: серый | C74: м | D74: 19.05 | E74: 1334.9097
A75: 100-0806-50 | B75: Кабель связи (балансный) SC-LOGICABLE LG MOD8LG50 негорючий, конструкция: 50 x 2 х 0,80 мм, оболочка: FRNC 23,7 мм, цвет: серый | C75: м | D75: 23.65 | E75: 1657.2501
A76: 100-1156-01 | B76: Кабель-мультикор микрофонный (балансный) SC-LOGICABLE MP MODF01 негорючий AES/EBU 110 Ом, конструкция: 1 х 2 х 0,57 мм, оболочка: FRNC 5,5 мм, цвет: серый | C76: м | D76: 2.65 | E76: 185.6961
A77: 100-1156-02 | B77: Кабель-мультикор микрофонный (балансный) SC-LOGICABLE MP MODF02 негорючий AES/EBU 110 Ом, конструкция: 2 х 2 х 0,57 мм, оболочка: FRNC 9,0 мм, цвет: серый | C77: м | D77: 5.43 | E77: =IF(D77="По запросу",D77,D77*$B$6*(1+0.02)) -> 380.50182
A78: 100-1156-03 | B78: Кабель-мультикор микрофонный (балансный) SC-LOGICABLE MP MODF03 негорючий AES/EBU 110 Ом, конструкция: 3 х 2 х 0,57 мм, оболочка: FRNC 9,2 мм, цвет: серый | C78: м | D78: 6.33 | E78: 443.56842
A79: 100-1156-04 | B79: Кабель-мультикор микрофонный (балансный) SC-LOGICABLE MP MODF04 негорючий AES/EBU 110 Ом, конструкция: 4 х 2 х 0,57 мм, оболочка: FRNC 11,1 мм, цвет: серый | C79: м | D79: 7.76 | E79: 543.77424
A80: 100-1156-06 | B80: Кабель-мультикор микрофонный (балансный) SC-LOGICABLE MP MODF06 негорючий AES/EBU 110 Ом, конструкция: 6 x 2 х 0,57 мм, оболочка: FRNC 12,4 мм, цвет: серый | C80: м | D80: 10.85 | E80: 760.3029
A81: 100-1156-08 | B81: Кабель-мультикор микрофонный (балансный) SC-LOGICABLE MP MODF08 негорючий AES/EBU 110 Ом, конструкция: 8 x 2 х 0,57 мм, оболочка: FRNC 14,0 мм, цвет: серый | C81: м | D81: 13.39 | E81: 938.29086
A82: 100-1156-10 | B82: Кабель-мультикор микрофонный (балансный) SC-LOGICABLE MP MODF10 негорючий AES/EBU 110 Ом, конструкция: 10 х 2 х 0,57 мм, оболочка: FRNC 15,3 мм, цвет: серый | C82: м | D82: 17.09 | E82: 1197.56466
A83: 100-1156-12 | B83: Кабель-мультикор микрофонный (балансный) SC-LOGICABLE MP MODF12 негорючий AES/EBU 110 Ом, конструкция: 12 x 2 х 0,57 мм, оболочка: FRNC 17,2 мм, цвет: серый | C83: м | D83: 21.02 | E83: 1472.95548
A84: 100-1156-20 | B84: Кабель-мультикор микрофонный (балансный) SC-LOGICABLE MP MODF20 негорючий AES/EBU 110 Ом, конструкция: 20 х 2 х 0,57 мм, оболочка: FRNC 22,6 мм, цвет: серый | C84: м | D84: 30.72 | E84: 2152.67328
A85: 100-1156-24 | B85: Кабель-мультикор микрофонный (балансный) SC-LOGICABLE MP MODF24 негорючий AES/EBU 110 Ом, конструкция: 24 x 2 х 0,57 мм, оболочка: FRNC 23,6 мм, цвет: серый | C85: м | D85: 36.65 | E85: 2568.2121
A86: 100-1156-32 | B86: Кабель-мультикор микрофонный (балансный) SC-LOGICABLE MP MODF32 негорючий AES/EBU 110 Ом, конструкция: 32 х 2 х 0,57 мм, оболочка: FRNC 27,0 мм, цвет: серый | C86: м | D86: 46.59 | E86: 3264.74766
A87: 100-1173-02 | B87: Кабель пожарной сигнализации (балансный) LOGICABLE SAFETY BD MODFS02 негорючий FE180/E90, конструкция: 2 х 2 х 0,80 мм, оболочка: HM2 7,7 мм, цвет: красный | C87: м | D87: 5.39 | E87: 377.69886
A88: 100-1173-04 | B88: Кабель пожарной сигнализации (балансный) LOGICABLE SAFETY BD MODFS04 негорючий FE180/E90, конструкция: 4 х 2 х 0,80 мм, оболочка: HM2 11,6 мм, цвет: красный | C88: м | D88: 8.83 | E88: 618.75342
A89: 100-1173-08 | B89: Кабель пожарной сигнализации (балансный) LOGICABLE SAFETY BD MODFS08 негорючий FE180/E90, конструкция: 8 x 2 х 0,80 мм, оболочка: HM2 17,9 мм, цвет: красный | C89: м | D89: 16.33 | E89: 1144.30842
A90: 100-1173-12 | B90: Кабель пожарной сигнализации (балансный) LOGICABLE SAFETY BD MODFS12 негорючий FE180/E90, конструкция: 12 x 2 х 0,80 мм, оболочка: HM2 18,7 мм, цвет: красный | C90: м | D90: 24.22 | E90: 1697.19228
A91: 200-0001 | B91: Кабель микрофонный (балансный) SC-STAGE 22 HIGHFLEX, конструкция: 2 х 0,22 мм², оболочка: PVC 6,4 мм, цвет: черный | C91: м | D91: 1.67 | E91: 117.02358
A92: 200-0001NE | B92: Кабель микрофонный (балансный) SC-STAGE 22 HIGHFLEX без маркировки на оболочке, конструкция: 2 х 0,22 мм², оболочка: PVC 6,4 мм, цвет: черный | C92: м | D92: 1.67 | E92: 117.02358
A93: 200-0002 | B93: Кабель микрофонный (балансный) SC-STAGE 22 HIGHFLEX, конструкция: 2 х 0,22 мм², оболочка: PVC 6,4 мм, цвет: синий | C93: м | D93: 1.67 | E93: 117.02358
A94: 200-0003 | B94: Кабель микрофонный (балансный) SC-STAGE 22 HIGHFLEX, конструкция: 2 х 0,22 мм², оболочка: PVC 6,4 мм, цвет: красный | C94: м | D94: 1.67 | E94: 117.02358
A95: 200-0004 | B95: Кабель микрофонный (балансный) SC-STAGE 22 HIGHFLEX, конструкция: 2 х 0,22 мм², оболочка: PVC 6,4 мм, цвет: зеленый | C95: м | D95: 1.67 | E95: 117.02358
A96: 200-0006 | B96: Кабель микрофонный (балансный) SC-STAGE 22 HIGHFLEX, конструкция: 2 х 0,22 мм², оболочка: PVC 6,4 мм, цвет: серый | C96: м | D96: 1.67 | E96: 117.02358
A97: 200-0007 | B97: Кабель микрофонный (балансный) SC-STAGE 22 HIGHFLEX, конструкция: 2 х 0,22 мм², оболочка: PVC 6,4 мм, цвет: желтый | C97: м | D97: 1.67 | E97: 117.02358
A98: 200-0008 | B98: Кабель микрофонный (балансный) SC-STAGE 22 HIGHFLEX, конструкция: 2 х 0,22 мм², оболочка: PVC 6,4 мм, цвет: фиолетовый | C98: м | D98: 1.67 | E98: 117.02358
A99: 200-0051 | B99: Кабель микрофонный (балансный) SC-CLUB SERIES MKII, конструкция: 2 х 0,34 мм², оболочка: PVC 6,5 мм, цвет: черный | C99: м | D99: 1.91 | E99: 133.84134
A100: 200-0051F | B100: Кабель микрофонный (балансный) SC-CLUB SERIES MKII негорючий, конструкция: 2 х 0,34 мм², оболочка: FRNC 6,5 мм, цвет: черный | C100: м | D100: 2.54 | E100: 177.98796
A101: 200-0051NE | B101: Кабель микрофонный (балансный) SC-CLUB SERIES MKII без маркировки на оболочке, конструкция: 2 х 0,34 мм², оболочка: PVC 6,5 мм, цвет: черный | C101: м | D101: 1.91 | E101: 133.84134
A102: 200-0051T | B102: Кабель микрофонный (балансный) SC-TEMPOFLEX MICROPHONE негорючий жаростойкий (до 130° C), конструкция: 2 х 0,34 мм², оболочка: TPE 7,3 мм, цвет: черный | C102: м | D102: 5.41 | E102: 379.10034
A103: 200-0052 | B103: Кабель микрофонный (балансный) SC-CLUB SERIES MKII, конструкция: 2 х 0,34 мм², оболочка: PVC 6,5 мм, цвет: синий | C103: м | D103: 1.91 | E103: 133.84134
A104: 200-0053 | B104: Кабель микрофонный (балансный) SC-CLUB SERIES MKII, конструкция: 2 х 0,34 мм², оболочка: PVC 6,5 мм, цвет: красный | C104: м | D104: 1.91 | E104: 133.84134
A105: 200-0057V | B105: Кабель микрофонный (балансный) SC-CLUB SERIES MKII винтажный, конструкция: 2 х 0,34 мм², оболочка: PVC + текстильная оплетка 6,5 мм, цвет: желтый / коричневый | C105: м | D105: 3 | E105: 210.222
A106: 200-008M | B106: Кабель микрофонный (балансный) SC-CAPTAIN FLEXIBLE, конструкция: 2 х 0,22 мм², оболочка: PVC 6,5 мм, цвет: темно-оливковый | C106: м | D106: 1.98 | E106: 138.74652
A107: 200-0101 | B107: Кабель микрофонный (балансный) SC-SOURCE MKII HIGHFLEX, конструкция: 2 х 0,25 мм², оболочка: PVC 6,5 мм, цвет: черный | C107: м | D107: 2.52 | E107: 176.58648
A108: 200-0101F | B108: Кабель микрофонный (балансный) SC-SOURCE MKII HIGHFLEX негорючий, конструкция: 2 х 0,25 мм², оболочка: FRNC 6,5 мм, цвет: черный | C108: м | D108: 3.22 | E108: 225.63828
A109: 200-0102 | B109: Кабель микрофонный (балансный) SC-SOURCE MKII HIGHFLEX, конструкция: 2 х 0,25 мм², оболочка: PVC 6,5 мм, цвет: синий | C109: м | D109: 2.52 | E109: 176.58648
A110: 200-0103 | B110: Кабель микрофонный (балансный) SC-SOURCE MKII HIGHFLEX, конструкция: 2 х 0,25 мм², оболочка: PVC 6,5 мм, цвет: красный | C110: м | D110: 2.52 | E110: 176.58648
A111: 200-0140AQ | B111: Кабель микрофонный (балансный) SC-AQUA MARINEX MIKRO AES/EBU 110 Ом водонепроницаемый, конструкция: 2 х 0,14 мм², оболочка: PUR-SR 4,6 мм, цвет: белый | C111: м | D111: 4.11 | E111: 288.00414
A112: 200-0141AQ | B112: Кабель микрофонный (балансный) SC-AQUA MARINEX MIKRO AES/EBU 110 Ом водонепроницаемый, конструкция: 2 х 0,14 мм², оболочка: PUR-SR 4,6 мм, цвет: черный | C112: м | D112: 4.11 | E112: 288.00414
A113: 200-0151 | B113: Кабель микрофонный (балансный) SC-PRIMUS, конструкция: 2 х 0,50 мм², оболочка: PVC 6,7 мм, цвет: черный | C113: м | D113: 2.7 | E113: 189.1998
A114: 200-0151F | B114: Кабель микрофонный (балансный) SC-PRIMUS FRNC негорючий, конструкция: 2 х 0,50 мм², оболочка: FRNC 6,5 мм, цвет: черный | C114: м | D114: 3.04 | E114: 213.02496
A115: 200-0152 | B115: Кабель микрофонный (балансный) SC-PRIMUS, конструкция: 2 х 0,50 мм², оболочка: PVC 6,7 мм, цвет: синий | C115: м | D115: 2.7 | E115: 189.1998
A116: 200-0186 | B116: Кабель микрофонный (балансный) SC-OCTAVE TUBE 7-и жильный для ламповых микрофонов, конструкция: 5x0,14 мм²(Аудио)+2x0,50 мм²(Управление), оболочка: PVC 6,5 мм, цвет: серый | C116: м | D116: 5.2 | E116: 364.3848
A117: 200-0241AQ | B117: Кабель микрофонный (балансный) SC-AQUA MARINEX MIKRO 25 AES/EBU 110 Ом водонепроницаемый, конструкция: 2 х 0,25 мм², оболочка: PUR-SR 7,2 мм, цвет: черный | C117: м | D117: 9.74 | E117: 682.52076
A118: 200-0251 | B118: Кабель микрофонный (балансный) SC-GALILEO 238, конструкция: 2 х 0,38 мм², оболочка: PVC 7,0 мм, цвет: черный | C118: м | D118: 3.54 | E118: 248.06196
A119: 200-0271 | B119: Кабель микрофонный (балансный) SC-GALILEO 238 Plus, конструкция: 2 х 0,38 мм², оболочка: PVC 7,0 мм, цвет: черный | C119: м | D119: 3.78 | E119: 264.87972
A120: 200-0281 | B120: Кабель микрофонный (балансный) SC-CARBOKAB 225, конструкция: 2 х 0,25 мм², оболочка: S-PVC 7,6 мм, цвет: черный | C120: м | D120: 8.33 | E120: 583.71642
A121: 200-0301 | B121: Кабель микрофонный (балансный) SC-SQUARE 4-CORE MKII HIGHFLEX перекрестный, конструкция: 4 х 0,20 мм², оболочка: PVC 6,5 мм, цвет: черный | C121: м | D121: 2.91 | E121: 203.91534
A122: 200-0301NE | B122: Кабель микрофонный (балансный) SC-SQUARE 4-CORE MKII HIGHFLEX перекрестный без маркировки на оболочке, конструкция: 4 х 0,20 мм², оболочка: PVC 6,5 мм, цвет: черный | C122: м | D122: 2.91 | E122: 203.91534
A123: 200-0311 | B123: Кабель микрофонный (балансный) патч-корд SC-SCUBA 14 HIGHFLEX, конструкция: 2 х 0,14 мм², оболочка: PVC 3,8 мм, цвет: черный | C123: м | D123: 1.41 | E123: 98.80434
A124: 200-0313 | B124: Кабель микрофонный (балансный) патч-корд SC-SCUBA 14 HIGHFLEX, конструкция: 2 х 0,14 мм², оболочка: PVC 3,8 мм, цвет: красный | C124: м | D124: 1.41 | E124: 98.80434
A125: 200-0314 | B125: Кабель микрофонный (балансный) патч-корд SC-SCUBA 14 HIGHFLEX, конструкция: 2 х 0,14 мм², оболочка: PVC 3,8 мм, цвет: зеленый | C125: м | D125: 1.41 | E125: 98.80434
A126: 200-0316 | B126: Кабель микрофонный (балансный) патч-корд SC-SCUBA 14 HIGHFLEX, конструкция: 2 х 0,14 мм², оболочка: PVC 3,8 мм, цвет: серый | C126: м | D126: 1.41 | E126: 98.80434
A127: 200-0317 | B127: Кабель микрофонный (балансный) патч-корд SC-SCUBA 14 HIGHFLEX, конструкция: 2 х 0,14 мм², оболочка: PVC 3,8 мм, цвет: желтый | C127: м | D127: 1.41 | E127: 98.80434
A128: 200-0350 | B128: Кабель микрофонный (балансный) патч-корд SC-GOBLIN, конструкция: 2 х 0,14 мм², оболочка: PVC 4,6 мм, цвет: белый | C128: м | D128: 1.63 | E128: 114.22062
A129: 200-0351 | B129: Кабель микрофонный (балансный) патч-корд SC-GOBLIN, конструкция: 2 х 0,14 мм², оболочка: PVC 4,6 мм, цвет: черный | C129: м | D129: 1.63 | E129: 114.22062
A130: 200-0352 | B130: Кабель микрофонный (балансный) патч-корд SC-GOBLIN, конструкция: 2 х 0,14 мм², оболочка: PVC 4,6 мм, цвет: синий | C130: м | D130: 1.63 | E130: 114.22062
A131: 200-0353 | B131: Кабель микрофонный (балансный) патч-корд SC-GOBLIN, конструкция: 2 х 0,14 мм², оболочка: PVC 4,6 мм, цвет: красный | C131: м | D131: 1.63 | E131: 114.22062
A132: 200-0356 | B132: Кабель микрофонный (балансный) патч-корд SC-GOBLIN, конструкция: 2 х 0,14 мм², оболочка: PVC 4,6 мм, цвет: серый | C132: м | D132: 1.63 | E132: 114.22062
A133: 200-0371 | B133: Кабель микрофонный (балансный) SC-MICRO-STAGE AES/EBU 110 Ом, конструкция: 2 х 0,14 мм², оболочка: PVC 5,8 мм, цвет: черный | C133: м | D133: 1.72 | E133: 120.52728
A134: 200-0400 | B134: Кабель микрофонный (балансный) патч-корд SC-ISOPOD SO-F22, конструкция: 2 х 0,22 мм², оболочка: PVC 3,3 мм, цвет: белый | C134: м | D134: 1.02 | E134: 71.47548
A135: 200-0401 | B135: Кабель микрофонный (балансный) патч-корд SC-ISOPOD SO-F22, конструкция: 2 х 0,22 мм², оболочка: PVC 3,3 мм, цвет: черный | C135: м | D135: 1.02 | E135: 71.47548
A136: 200-0401F | B136: Кабель микрофонный (балансный) патч-корд SC-ISOPOD SO-F22F негорючий, конструкция: 2 х 0,22 мм², оболочка: FRNC 3,3 мм, цвет: черный | C136: м | D136: 1.35 | E136: 94.5999
A137: 200-0402 | B137: Кабель микрофонный (балансный) патч-корд SC-ISOPOD SO-F22, конструкция: 2 х 0,22 мм², оболочка: PVC 3,3 мм, цвет: синий | C137: м | D137: 1.02 | E137: 71.47548
A138: 200-0403 | B138: Кабель микрофонный (балансный) патч-корд SC-ISOPOD SO-F22, конструкция: 2 х 0,22 мм², оболочка: PVC 3,3 мм, цвет: красный | C138: м | D138: 1.02 | E138: 71.47548
A139: 200-0404 | B139: Кабель микрофонный (балансный) патч-корд SC-ISOPOD SO-F22, конструкция: 2 х 0,22 мм², оболочка: PVC 3,3 мм, цвет: зеленый | C139: м | D139: 1.02 | E139: 71.47548
A140: 200-0405 | B140: Кабель микрофонный (балансный) патч-корд SC-ISOPOD SO-F22, конструкция: 2 х 0,22 мм², оболочка: PVC 3,3 мм, цвет: оранжевый | C140: м | D140: 1.02 | E140: 71.47548
A141: 200-0406 | B141: Кабель микрофонный (балансный) патч-корд SC-ISOPOD SO-F22, конструкция: 2 х 0,22 мм², оболочка: PVC 3,3 мм, цвет: серый | C141: м | D141: 1.02 | E141: =IF(D141="По запросу",D141,D141*$B$6*(1+0.02)) -> 71.47548
A142: 200-0407 | B142: Кабель микрофонный (балансный) патч-корд SC-ISOPOD SO-F22, конструкция: 2 х 0,22 мм², оболочка: PVC 3,3 мм, цвет: желтый | C142: м | D142: 1.02 | E142: 71.47548
A143: 200-0408 | B143: Кабель микрофонный (балансный) патч-корд SC-ISOPOD SO-F22, конструкция: 2 х 0,22 мм², оболочка: PVC 3,3 мм, цвет: фиолетовый | C143: м | D143: 1.02 | E143: 71.47548
A144: 200-0451 | B144: Кабель микрофонный (балансный) патч-корд SC-CICADA SO-D14, конструкция: 2 х 0,14 мм², оболочка: PUR 2,6 мм, цвет: черный | C144: м | D144: 1.41 | E144: 98.80434
A145: 200-0551 | B145: Кабель микрофонный (балансный) SC-PEACOCK MKII двупарный AES/EBU 110 Ом, конструкция: 2 х 2 х 0,22 мм², оболочка: S-PVC 4,5 x 9,2 мм, цвет: черный | C145: м | D145: 3.72 | E145: 260.67528
A146: 200-0552 | B146: Кабель микрофонный (балансный) SC-PEACOCK MKII двупарный AES/EBU 110 Ом, конструкция: 2 х 2 х 0,22 мм², оболочка: S-PVC 4,5 x 9,2 мм, цвет: синий | C146: м | D146: 3.72 | E146: 260.67528
A147: 200-0601 | B147: Кабель микрофонный (балансный) SC-SYMBIOTIC, конструкция: 2 х 0,20 мм², оболочка: PVC 5,2 мм, цвет: черный | C147: м | D147: 2.65 | E147: 185.6961
A148: 200-0601H3 | B148: Кабель микрофонный (балансный) SC-SYMBIOTIC 3 3-х жильный, конструкция: 3 х 0,20 мм², оболочка: TPE 5,2 мм, цвет: черный | C148: м | D148: 3.43 | E148: 240.35382
A149: 200-0711 | B149: Кабель микрофонный (балансный) SC-CLUB BLACK ZILK AES/EBU 110 Ом, конструкция: 2 х 0,25 мм², оболочка: S-PVC 7,3 мм, цвет: черный | C149: м | D149: 3.26 | E149: 228.44124
A150: 200-0713 | B150: Кабель микрофонный (балансный) SC-CLUB RED ZILK AES/EBU 110 Ом, конструкция: 2 х 0,25 мм², оболочка: S-PVC 7,3 мм, цвет: бордовый | C150: м | D150: 3.26 | E150: 228.44124
A151: 201-0101 | B151: Кабель микрофонный (балансный) SC-SOURCE MKII HIGHFLEX, конструкция: 2 х 0,25 мм², оболочка: PUR 6,5 мм, цвет: черный | C151: м | D151: 3.7 | E151: 259.2738
A152: 201-0406 | B152: Кабель микрофонный (балансный) патч-корд SC-ISOPOD SO-F50, конструкция: 2 х 0,50 мм², оболочка: PVC 4,2 мм, цвет: серый | C152: м | D152: 1.48 | E152: 103.70952
A153: 300-0021 | B153: Кабель инструментальный (небалансный) SC-TRICONE MKII, конструкция: 1 х 0,22 мм², оболочка: PVC 5,9 мм, цвет: черный | C153: м | D153: 1.61 | E153: 112.81914
A154: 300-0021NE | B154: Кабель инструментальный (небалансный) SC-TRICONE MKII без маркировки на оболочке, конструкция: 1 х 0,22 мм², оболочка: PVC 5,9 мм, цвет: черный | C154: м | D154: 1.61 | E154: 112.81914
A155: 300-0022 | B155: Кабель инструментальный (небалансный) SC-TRICONE MKII, конструкция: 1 х 0,22 мм², оболочка: PVC 5,9 мм, цвет: синий | C155: м | D155: 1.61 | E155: 112.81914
A156: 300-0023 | B156: Кабель инструментальный (небалансный) SC-TRICONE MKII, конструкция: 1 х 0,22 мм², оболочка: PVC 5,9 мм, цвет: красный | C156: м | D156: 1.61 | E156: 112.81914
A157: 300-0024 | B157: Кабель инструментальный (небалансный) SC-TRICONE MKII, конструкция: 1 х 0,22 мм², оболочка: PVC 5,9 мм, цвет: зеленый | C157: м | D157: 1.61 | E157: 112.81914
A158: 300-0031 | B158: Кабель инструментальный (небалансный) патч-корд SC-ONYX TYNEE, конструкция: 1 х 0,22 мм², оболочка: PVC 4,0 мм, цвет: черный | C158: м | D158: 1.02 | E158: 71.47548
A159: 300-0051 | B159: Кабель инструментальный (небалансный) SC-SPIRIT, конструкция: 1 х 0,50 мм², оболочка: PVC 7,0 мм, цвет: черный | C159: м | D159: 3.3 | E159: 231.2442
A160: 300-0071 | B160: Кабель инструментальный (небалансный) SC-SPIRIT XXL, конструкция: 1 х 0,75 мм², оболочка: PVC 6,8 мм, цвет: прозрачный | C160: м | D160: 3.52 | E160: 246.66048
A161: 300-008M | B161: Кабель инструментальный (небалансный) SC-COLONEL INCREDIBLE 2-х жильный HIGH END, конструкция: 2 х 0,35 мм², оболочка: PVC 7,2 мм, цвет: темно-оливковый | C161: м | D161: 3.96 | E161: 277.49304
A162: 300-0091 | B162: Кабель инструментальный (небалансный) SC-SPIRIT LLX LOW LOSS, конструкция: 1 х 0,38 мм², оболочка: PVC 7,5 мм, цвет: черный | C162: м | D162: 3.83 | E162: 268.38342
A163: 300-0110 | B163: Кабель инструментальный (небалансный) SC-CLASSIQUE, конструкция: 1 х 0,50 мм², оболочка: PVC + текстильная оплетка 6,5 мм, цвет: черный/белый | C163: м | D163: 3.83 | E163: 268.38342
A164: 300-0112 | B164: Кабель инструментальный (небалансный) SC-CLASSIQUE, конструкция: 1 х 0,50 мм², оболочка: PVC + текстильная оплетка 6,5 мм, цвет: черный/синий | C164: м | D164: 3.83 | E164: 268.38342
A165: 300-0117 | B165: Кабель инструментальный (небалансный) SC-CLASSIQUE, конструкция: 1 х 0,50 мм², оболочка: PVC + текстильная оплетка 6,5 мм, цвет: желтый / коричневый | C165: м | D165: 3.83 | E165: 268.38342
A166: 300-0270 | B166: Кабель инструментальный (небалансный) SC-TRICONE XXL, конструкция: 1 х 0,50 мм², оболочка: LLC (Long Life Compound) 5,9 мм, цвет: белый | C166: м | D166: 2.28 | E166: 159.76872
A167: 300-0271 | B167: Кабель инструментальный (небалансный) SC-TRICONE XXL, конструкция: 1 х 0,50 мм², оболочка: LLC (Long Life Compound) 5,9 мм, цвет: черный | C167: м | D167: 2.28 | E167: 159.76872
A168: 300-0272 | B168: Кабель инструментальный (небалансный) SC-TRICONE XXL, конструкция: 1 х 0,50 мм², оболочка: LLC (Long Life Compound) 5,9 мм, цвет: синий | C168: м | D168: 2.28 | E168: 159.76872
A169: 300-0273 | B169: Кабель инструментальный (небалансный) SC-TRICONE XXL, конструкция: 1 х 0,50 мм², оболочка: LLC (Long Life Compound) 5,9 мм, цвет: красный | C169: м | D169: 2.28 | E169: 159.76872
A170: 300-0351 | B170: Кабель инструментальный (небалансный) SC-SPIRIT BLACK ZILK, конструкция: 1 х 0,25 мм², оболочка: PVC 7,2 мм, цвет: черный полупрозрачный | C170: м | D170: 3.33 | E170: 233.34642
A171: 301-1101 | B171: Кабель комбинированный SC-TRICONE SYMASYM, конструкция: 1х(1х0,22 мм²)(Инстр.) + 1х(2х0,14 мм²) (Микроф.), оболочка: PVC 11,5 мм, цвет: черный | C171: м | D171: 8.52 | E171: 597.03048
A172: 301-2413 | B172: Кабель комбинированный SC-TRICONE 241P, конструкция: 4х(1х0,22мм²) (Инстр.) + 2х(2х0,14мм²) (Аудио) + 1х(4х2х0,14мм²) (CAT.5e) + 1х(3х0,75мм²) (Питание), оболочка: PVC 21,8 мм, цвет: черный | C172: м | D172: 30.35 | E172: 2126.7459
A173: 320-0061 | B173: Кабель инструментальный (небалансный) патч-корд SC-ONYX 2008 2-х жильный, конструкция: 2 x 1 х 0,08 мм², оболочка: PVC 2,6 x 5,9 мм, цвет: черный | C173: м | D173: 1.52 | E173: 106.51248
A174: 320-0101 | B174: Кабель инструментальный (небалансный) патч-корд SC-ONYX 2025 2-х жильный, конструкция: 2 x 1 х 0,25 мм², оболочка: PVC 3,8 x 8,3 мм, цвет: черный | C174: м | D174: 2.52 | E174: 176.58648
A175: 320-0102 | B175: Кабель инструментальный (небалансный) патч-корд SC-ONYX 2025 2-х жильный, конструкция: 2 x 1 х 0,08 мм², оболочка: PVC 3,8 x 8,3 мм, цвет: синий | C175: м | D175: 2.65 | E175: 185.6961
A176: 320-0252 | B176: Кабель инструментальный (небалансный) SC-SINUS CONTROL с дополнительным проводом управления, конструкция: 2х1х0,35 мм² (Инстр. коакс.) + 1х0,35 мм² (Управл.), оболочка: S-PVC 4,5 x 9,2 мм, цвет: синий | C176: м | D176: 3.98 | E176: 278.89452
A177: 380-0056-02014 | B177: Кабель управления SC-CONTROL FLEX негорючий, конструкция: 2 х 0,14 мм², оболочка: PVC 3,8 мм, цвет: серый | C177: м | D177: 0.89 | E177: 62.36586
A178: 380-0056-02025 | B178: Кабель управления SC-CONTROL FLEX негорючий, конструкция: 2 х 0,25 мм², оболочка: PVC 4,2 мм, цвет: серый | C178: м | D178: 1 | E178: 70.074
A179: 380-0056-02034 | B179: Кабель управления SC-CONTROL FLEX негорючий, конструкция: 2 х 0,34 мм², оболочка: PVC 4,6 мм, цвет: серый | C179: м | D179: 1.15 | E179: 80.5851
A180: 380-0056-02050 | B180: Кабель управления SC-CONTROL FLEX негорючий, конструкция: 2 х 0,50 мм², оболочка: PVC 5,5 мм, цвет: серый | C180: м | D180: 1.52 | E180: 106.51248
A181: 380-0056-02075 | B181: Кабель управления SC-CONTROL FLEX негорючий, конструкция: 2 х 0,75 мм², оболочка: PVC 6,1 мм, цвет: серый | C181: м | D181: 1.95 | E181: 136.6443
A182: 380-0056-03014 | B182: Кабель управления SC-CONTROL FLEX негорючий, конструкция: 3 х 0,14 мм², оболочка: PVC 4,0 мм, цвет: серый | C182: м | D182: 1 | E182: 70.074
A183: 380-0056-03025 | B183: Кабель управления SC-CONTROL FLEX негорючий, конструкция: 3 х 0,25 мм², оболочка: PVC 4,4 мм, цвет: серый | C183: м | D183: 1.23 | E183: 86.19102
A184: 380-0056-03034 | B184: Кабель управления SC-CONTROL FLEX негорючий, конструкция: 3 х 0,34 мм², оболочка: PVC 4,9 мм, цвет: серый | C184: м | D184: 1.44 | E184: 100.90656
A185: 380-0056-03050 | B185: Кабель управления SC-CONTROL FLEX негорючий, конструкция: 3 х 0,50 мм², оболочка: PVC 5,8 мм, цвет: серый | C185: м | D185: 1.81 | E185: 126.83394
A186: 380-0056-03075 | B186: Кабель управления SC-CONTROL FLEX негорючий, конструкция: 3 х 0,75 мм², оболочка: PVC 6,5 мм, цвет: серый | C186: м | D186: 2.4 | E186: 168.1776
A187: 380-0056-04014 | B187: Кабель управления SC-CONTROL FLEX негорючий, конструкция: 4 х 0,14 мм², оболочка: PVC 4,2 мм, цвет: серый | C187: м | D187: 1.21 | E187: 84.78954
A188: 380-0056-04025 | B188: Кабель управления SC-CONTROL FLEX негорючий, конструкция: 4 х 0,25 мм², оболочка: PVC 4,7 мм, цвет: серый | C188: м | D188: 1.39 | E188: 97.40286
A189: 380-0056-04034 | B189: Кабель управления SC-CONTROL FLEX негорючий, конструкция: 4 х 0,34 мм², оболочка: PVC 5,5 мм, цвет: серый | C189: м | D189: 1.68 | E189: 117.72432
A190: 380-0056-04050 | B190: Кабель управления SC-CONTROL FLEX негорючий, конструкция: 4 х 0,50 мм², оболочка: PVC 6,3 мм, цвет: серый | C190: м | D190: 2.26 | E190: 158.36724
A191: 380-0056-04075 | B191: Кабель управления SC-CONTROL FLEX негорючий, конструкция: 4 х 0,75 мм², оболочка: PVC 7,0 мм, цвет: серый | C191: м | D191: 3.05 | E191: 213.7257
A192: 380-0056-05014 | B192: Кабель управления SC-CONTROL FLEX негорючий, конструкция: 5 х 0,14 мм², оболочка: PVC 4,5 мм, цвет: серый | C192: м | D192: 1.26 | E192: 88.29324
A193: 380-0056-05025 | B193: Кабель управления SC-CONTROL FLEX негорючий, конструкция: 5 х 0,25 мм², оболочка: PVC 5,4 мм, цвет: серый | C193: м | D193: 1.58 | E193: 110.71692
A194: 380-0056-05034 | B194: Кабель управления SC-CONTROL FLEX негорючий, конструкция: 5 х 0,34 мм², оболочка: PVC 5,9 мм, цвет: серый | C194: м | D194: 1.98 | E194: 138.74652
A195: 380-0056-05050 | B195: Кабель управления SC-CONTROL FLEX негорючий, конструкция: 5 х 0,50 мм², оболочка: PVC 6,7 мм, цвет: серый | C195: м | D195: 2.81 | E195: 196.90794
A196: 380-0056-05075 | B196: Кабель управления SC-CONTROL FLEX негорючий, конструкция: 5 х 0,75 мм², оболочка: PVC 7,5 мм, цвет: серый | C196: м | D196: 3.63 | E196: 254.36862
A197: 380-0056-06014 | B197: Кабель управления SC-CONTROL FLEX негорючий, конструкция: 6 х 0,14 мм², оболочка: PVC 4,8 мм, цвет: серый | C197: м | D197: 1.44 | E197: 100.90656
A198: 380-0056-06025 | B198: Кабель управления SC-CONTROL FLEX негорючий, конструкция: 6 х 0,25 мм², оболочка: PVC 5,7 мм, цвет: серый | C198: м | D198: 1.9 | E198: 133.1406
A199: 380-0056-06034 | B199: Кабель управления SC-CONTROL FLEX негорючий, конструкция: 6 х 0,34 мм², оболочка: PVC 6,3 мм, цвет: серый | C199: м | D199: 2.35 | E199: 164.6739
A200: 380-0056-06050 | B200: Кабель управления SC-CONTROL FLEX негорючий, конструкция: 6 х 0,50 мм², оболочка: PVC 7,2 мм, цвет: серый | C200: м | D200: 3.23 | E200: 226.33902
A201: 380-0056-06075 | B201: Кабель управления SC-CONTROL FLEX негорючий, конструкция: 6 х 0,75 мм², оболочка: PVC 8,1 мм, цвет: серый | C201: м | D201: 4.45 | E201: 311.8293
A202: 380-0056-07014 | B202: Кабель управления SC-CONTROL FLEX негорючий, конструкция: 7 х 0,14 мм², оболочка: PVC 4,8 мм, цвет: серый | C202: м | D202: 1.53 | E202: 107.21322
A203: 380-0056-07025 | B203: Кабель управления SC-CONTROL FLEX негорючий, конструкция: 7 х 0,25 мм², оболочка: PVC 5,7 мм, цвет: серый | C203: м | D203: 2.03 | E203: 142.25022
A204: 380-0056-07034 | B204: Кабель управления SC-CONTROL FLEX негорючий, конструкция: 7 х 0,34 мм², оболочка: PVC 6,3 мм, цвет: серый | C204: м | D204: 2.66 | E204: 186.39684
A205: 380-0056-07050 | B205: Кабель управления SC-CONTROL FLEX негорючий, конструкция: 7 х 0,50 мм², оболочка: PVC 7,2 мм, цвет: серый | C205: м | D205: 3.77 | E205: =IF(D205="По запросу",D205,D205*$B$6*(1+0.02)) -> 264.17898
... 986 more rows
